bitfinex-derivatives/quotes_BNBF0:USTF0_20250521
["timestamp","ask_amount","ask_price","bid_price","bid_amount"]
[1747864529239,0.98018553,673.47,672.88,0.29722981]
[1747864530741,1.11215982,673.49,672.88,0.29722981]
[1747864531746,0.98018553,673.48,672.88,0.29722981]
[1747864533247,0.98018553,673.47,672.88,0.29722981]
[1747864534446,0.98018553,673.46,672.88,0.29722981]
[1747864536549,0.98018553,673.51,672.88,0.29722981]
[1747864538048,0.98018553,673.55,672.88,0.29722981]
[1747864539652,1.11215982,673.53,672.88,0.29722981]
[1747864541155,0.98018553,673.52,672.88,0.29722981]
[1747864543351,0.98018553,673.51,672.88,0.29722981]
[1747864544956,0.98018553,673.5,672.88,0.29722981]
[1747864546760,3.7071994,674.91,672.88,0.29722981]
[1747864546761,0.98018553,673.49,672.88,0.29722981]
[1747864548256,0.98018553,673.62,672.88,0.29722981]
[1747864549764,0.98018553,673.61,672.88,0.29722981]
[1747864550966,0.98018553,673.75,672.88,0.29722981]
[1747864552462,1.11215982,673.71,672.88,0.29722981]
[1747864553563,0.98018553,673.7,672.88,0.29722981]
[1747864555062,0.98018553,673.69,672.88,0.29722981]
[1747864556265,0.98018553,673.68,672.88,0.29722981]
[1747864558067,0.98018553,673.67,672.88,0.29722981]
[1747864559166,0.98018553,673.66,672.88,0.29722981]
[1747864561867,1.11215982,673.62,672.88,0.29722981]
[1747864563574,0.98018553,673.61,672.88,0.29722981]
[1747864564970,1.11215982,673.59,672.88,0.29722981]
[1747864566174,0.98018553,673.58,672.88,0.29722981]
[1747864567778,1.11215982,673.59,672.88,0.29722981]
[1747864568881,0.98018553,673.58,672.88,0.29722981]
[1747864570584,1.11215982,673.51,672.88,0.29722981]
[1747864571784,0.98018553,673.5,672.88,0.29722981]
[1747864573483,0.98018553,673.49,672.88,0.29722981]
[1747864574583,0.98018553,673.48,672.88,0.29722981]
[1747864576381,0.98018553,673.51,672.88,0.29722981]
[1747864578289,0.98018553,673.5,672.88,0.29722981]
[1747864579988,1.11215982,673.43,672.88,0.29722981]
[1747864580788,0.98018553,673.42,672.88,0.29722981]
[1747864581987,1.11215982,673.4,672.88,0.29722981]
[1747864583387,0.98018553,673.39,672.88,0.29722981]
[1747864585087,0.98018553,673.38,672.88,0.29722981]
[1747864586286,0.98018553,673.37,672.88,0.29722981]
[1747864587793,0.98018553,673.4,672.88,0.29722981]
[1747864588990,0.98018553,673.39,672.88,0.29722981]
[1747864590592,0.98018553,673.38,672.88,0.29722981]
[1747864592094,0.98018553,673.37,672.88,0.29722981]
[1747864594195,2.09234535,673.4,672.88,0.29722981]
[1747864595591,0.98018553,673.39,672.88,0.29722981]
[1747864596898,1.11215982,673.36,672.88,0.29722981]
[1747864598297,0.98018553,673.35,672.88,0.29722981]
[1747864599998,1.11215982,673.37,672.88,0.29722981]
[1747864601299,0.98018553,673.36,672.88,0.29722981]
[1747864602700,1.11215982,673.37,672.88,0.29722981]
[1747864603800,0.98018553,673.36,672.88,0.29722981]
[1747864605403,1.11215982,673.56,672.88,0.29722981]
[1747864606903,0.98018553,673.55,672.88,0.29722981]
[1747864608798,1.11215982,673.56,672.88,0.29722981]
[1747864609003,1.11215982,673.62,672.88,0.29722981]
[1747864610503,0.98018553,673.61,672.88,0.29722981]
[1747864612310,1.11215982,673.58,672.88,0.29722981]
[1747864614212,3.7071994,674.38,672.88,0.29722981]
[1747864614213,0.98018553,673.57,672.88,0.29722981]
[1747864615111,0.98018553,673.65,672.88,0.29722981]
[1747864616215,0.98018553,673.64,672.88,0.29722981]
[1747864617616,3.7071994,674.38,672.88,0.29722981]
[1747864617617,0.98018553,673.63,672.88,0.29722981]
[1747864620617,0.98018553,673.68,672.88,0.29722981]
[1747864622017,0.98018553,673.67,672.88,0.29722981]
[1747864623019,0.98018553,673.66,672.88,0.29722981]
[1747864624722,0.98018553,673.69,672.88,0.29722981]
[1747864627124,1.11215982,673.66,672.88,0.29722981]
[1747864628224,0.98018553,673.65,672.88,0.29722981]
[1747864629927,1.11215982,673.66,672.88,0.29722981]
[1747864630924,0.98018553,673.65,672.88,0.29722981]
[1747864632730,1.11215982,673.73,672.88,0.29722981]
[1747864633930,0.98018553,673.72,672.88,0.29722981]
[1747864635132,1.11215982,673.74,672.88,0.29722981]
[1747864635936,0.98018553,673.73,672.88,0.29722981]
[1747864637737,1.11215982,673.75,672.88,0.29722981]
[1747864638536,0.98018553,673.74,672.88,0.29722981]
[1747864641038,1.11215982,673.74,672.88,0.29722981]
[1747864642338,0.98018553,673.73,672.88,0.29722981]
[1747864644639,1.11215982,673.78,672.88,0.29722981]
[1747864645742,0.98018553,673.77,672.88,0.29722981]
[1747864649749,2.09234535,673.77,672.88,0.29722981]
[1747864650844,0.98018553,673.76,672.88,0.29722981]
[1747864652247,2.09234535,673.76,672.88,0.29722981]
[1747864653949,1.11215982,673.76,672.88,0.29722981]
[1747864655351,0.98018553,673.75,672.88,0.29722981]
[1747864656748,0.98018553,673.81,672.88,0.29722981]
[1747864658043,1.11215982,673.79,672.88,0.29722981]
[1747864660947,1.11215982,674.2,672.88,0.29722981]
[1747864662151,0.98350748,674.19,672.88,0.29722981]
[1747864663754,0.98350748,674.18,672.88,0.29722981]
[1747864664951,0.98350748,674.17,672.88,0.29722981]
[1747864666552,3.7071994,675.36,672.88,0.29722981]
[1747864666553,0.98350748,674.16,672.88,0.29722981]
[1747864667546,0.98350748,674.15,672.88,0.29722981]
[1747864669253,0.98350748,674.14,672.88,0.29722981]
[1747864670353,0.98350748,674.13,672.88,0.29722981]
[1747864672555,0.98350748,674.12,672.88,0.29722981]
[1747864674050,0.98350748,674.11,672.88,0.29722981]
[1747864675654,0.98350748,674.1,672.88,0.29722981]
[1747864677355,0.98350748,674.09,672.88,0.29722981]
[1747864679859,1.11215982,674.07,672.95,0.62566993]
[1747864680160,1.11215982,674.07,672.97,0.29719006]
[1747864680956,0.98350748,674.06,672.97,0.29719006]
[1747864682462,0.98350748,674.05,672.97,0.29719006]
[1747864683864,0.98350748,674.04,672.97,0.29719006]
[1747864685560,0.98350748,674.03,672.97,0.29719006]
[1747864687458,0.98350748,674.02,672.97,0.29719006]
[1747864689165,0.98350748,674.01,672.97,0.29719006]
[1747864690767,0.98350748,674.0,672.97,0.29719006]
[1747864692361,3.7071994,675.06,672.97,0.29719006]
[1747864692362,0.98350748,673.99,672.97,0.29719006]
[1747864693266,0.98350748,673.98,672.97,0.29719006]
[1747864695068,0.98350748,673.97,672.97,0.29719006]
[1747864696068,0.98350748,673.96,672.97,0.29719006]
[1747864697771,0.98350748,673.95,672.97,0.29719006]
[1747864698773,0.98350748,673.94,672.97,0.29719006]
[1747864700374,0.98350748,673.93,672.97,0.29719006]
[1747864701773,1.11215982,674.19,672.97,0.29719006]
[1747864703576,0.98210952,674.18,673.17,0.62566993]
[1747864703774,0.98210952,674.18,673.19,0.29709294]
[1747864705079,0.98210952,674.17,673.19,0.29709294]
[1747864706580,0.98210952,674.16,673.19,0.29709294]
[1747864707681,0.98210952,674.33,673.19,0.29709294]
[1747864708977,0.98210952,674.33,673.2,0.62566993]
[1747864709180,0.98210952,674.33,673.22,0.2970797]
[1747864710484,0.98210952,674.34,673.22,0.2970797]
[1747864713084,0.98210952,674.35,673.22,0.2970797]
[1747864715189,2.09426934,674.34,673.22,0.2970797]
[1747864716086,0.98210952,674.33,673.22,0.2970797]
[1747864717785,0.98210952,674.32,673.22,0.2970797]
[1747864719890,0.98210952,674.31,673.22,0.2970797]
[1747864721691,0.98210952,674.3,673.22,0.2970797]
[1747864722691,0.98210952,674.29,673.22,0.2970797]
[1747864723587,0.98210952,674.28,673.22,0.2970797]
[1747864723788,1.11215982,674.23,673.22,0.2970797]
[1747864725294,0.98210952,674.22,673.22,0.2970797]
[1747864727497,1.11215982,674.17,673.22,0.2970797]
[1747864728997,0.98210952,674.16,673.22,0.2970797]
[1747864730801,1.11215982,674.07,673.22,0.2970797]
[1747864731895,0.98210952,674.06,673.22,0.2970797]
[1747864732801,0.98210952,674.05,673.22,0.2970797]
[1747864734707,0.98210952,674.06,673.22,0.2970797]
[1747864737508,0.98210952,674.22,673.22,0.2970797]
[1747864739108,0.98210952,674.22,673.27,0.62566993]
[1747864739305,0.98210952,674.22,673.29,0.29704881]
[1747864740208,0.98210952,674.35,673.29,0.29704881]
[1747864742509,0.98210952,674.35,673.38,0.62566993]
[1747864742708,0.98210952,674.35,673.4,0.29700029]
[1747864743611,0.98210952,674.5,673.4,0.29700029]
[1747864745612,0.98210952,674.49,673.4,0.29700029]
[1747864746913,0.98210952,674.48,673.4,0.29700029]
[1747864748313,0.98210952,674.53,673.4,0.29700029]
[1747864750216,0.98210952,674.52,673.4,0.29700029]
[1747864751315,0.98210952,674.51,673.4,0.29700029]
[1747864752814,0.98210952,674.5,673.4,0.29700029]
[1747864754018,0.98210952,674.49,673.4,0.29700029]
[1747864754717,0.98210952,674.48,673.4,0.29700029]
[1747864756218,0.98210952,674.56,673.53,0.62566993]
[1747864756420,0.98210952,674.56,673.55,0.29693415]
[1747864757318,0.98210952,674.75,673.55,0.29693415]
[1747864759222,0.98210952,674.75,673.74,0.62566993]
[1747864759520,0.98210952,674.75,673.76,0.2968416]
[1747864760918,0.98210952,674.94,673.76,0.2968416]
[1747864762823,0.98210952,674.93,673.76,0.2968416]
[1747864764323,0.98210952,674.92,673.76,0.2968416]
[1747864765919,0.98210952,674.91,673.76,0.2968416]
[1747864767424,0.98210952,674.9,673.76,0.2968416]
[1747864768825,1.11215982,674.84,673.76,0.2968416]
[1747864770127,0.98210952,674.83,673.76,0.2968416]
[1747864772026,0.98210952,674.82,673.76,0.2968416]
[1747864773227,0.98210952,674.81,673.76,0.2968416]
[1747864775530,0.98210952,674.8,673.76,0.2968416]
[1747864776629,0.98210952,674.79,673.76,0.2968416]
[1747864778130,0.98210952,674.78,673.76,0.2968416]
[1747864779430,0.98210952,674.77,673.76,0.2968416]
[1747864780830,0.98210952,674.76,673.76,0.2968416]
[1747864782030,0.98210952,674.75,673.76,0.2968416]
[1747864783831,0.98210952,674.74,673.76,0.2968416]
[1747864785230,0.98210952,674.73,673.76,0.2968416]
[1747864786833,0.98210952,674.72,673.76,0.2968416]
[1747864788032,0.98210952,674.71,673.76,0.2968416]
[1747864789633,1.11215982,674.95,673.76,0.2968416]
[1747864790432,0.98009355,674.94,673.76,0.2968416]
[1747864792036,1.11215982,674.91,673.76,0.2968416]
[1747864793638,0.98009355,674.9,673.76,0.2968416]
[1747864796442,0.98009355,674.92,673.76,0.2968416]
[1747864801847,0.98009355,675.12,673.76,0.2968416]
[1747864803649,2.09225337,675.12,673.76,0.2968416]
[1747864804850,0.98009355,675.11,673.76,0.2968416]
[1747864806554,1.11215982,675.02,673.76,0.2968416]
[1747864807854,0.98009355,675.01,673.76,0.2968416]
[1747864809456,1.11215982,674.97,673.79,0.62566993]
[1747864809657,1.11215982,674.97,673.81,0.29681957]
[1747864810658,0.98009355,674.96,673.81,0.29681957]
[1747864812054,0.98009355,674.96,673.95,0.62566993]
[1747864812257,0.98009355,674.96,673.97,0.29674911]
[1747864813360,0.98009355,675.17,673.97,0.29674911]
[1747864814560,1.11215982,675.08,674.05,0.62566993]
[1747864814761,1.11215982,675.08,674.07,0.29670508]
[1747864815761,0.98009355,675.07,674.07,0.29670508]
[1747864817063,1.11215982,675.11,674.07,0.92237501]
[1747864818059,0.98009355,675.1,674.07,0.92237501]
[1747864819365,1.11215982,675.16,674.07,0.29670508]
[1747864820565,0.98009355,675.15,674.07,0.29670508]
[1747864823369,0.98009355,675.16,674.07,0.29670508]
[1747864826969,0.98009355,675.15,674.07,0.29670508]
[1747864828772,1.11215982,674.87,674.07,0.29670508]
[1747864829570,0.98009355,674.86,674.07,0.29670508]
[1747864831867,1.11215982,674.81,674.07,0.29670508]
[1747864833066,0.98009355,674.8,674.07,0.29670508]
[1747864835769,0.98009355,674.87,674.07,0.29670508]
[1747864837274,2.09225337,674.87,674.07,0.29670508]
[1747864838371,0.98009355,674.86,674.07,0.29670508]
[1747864841177,0.98009355,674.89,674.07,0.29670508]
[1747864843180,0.98009355,674.88,674.07,0.29670508]
[1747864844180,0.98009355,674.87,674.07,0.29670508]
[1747864845983,0.98009355,674.97,674.07,0.29670508]
[1747864847382,0.98009355,674.96,674.07,0.29670508]
[1747864848984,0.98009355,674.95,674.07,0.29670508]
[1747864850184,0.98009355,674.94,674.07,0.29670508]
[1747864851586,0.98009355,674.93,674.07,0.29670508]
[1747864852683,0.98009355,674.92,674.07,0.29670508]
[1747864853881,0.98009355,674.91,674.07,0.29670508]
[1747864855183,0.98009355,674.9,674.07,0.29670508]
[1747864857085,0.98009355,674.89,674.07,0.29670508]
[1747864858090,0.98009355,674.88,674.07,0.29670508]
[1747864860090,0.98009355,674.93,674.07,0.29670508]
[1747864861190,0.98009355,674.92,674.07,0.29670508]
[1747864862290,0.98009355,674.91,674.07,0.29670508]
[1747864863992,0.98009355,674.93,674.07,0.29670508]
[1747864866792,0.98009355,674.96,674.07,0.29670508]
[1747864869791,0.98009355,674.97,674.07,0.29670508]
[1747864873395,0.98009355,674.98,674.07,0.29670508]
[1747864875099,2.09225337,674.98,674.07,0.29670508]
[1747864876596,0.98009355,674.97,674.07,0.29670508]
[1747864877497,1.11215982,674.96,674.07,0.29670508]
[1747864879007,0.98009355,674.95,674.07,0.29670508]
[1747864880104,1.11215982,674.94,674.07,0.29670508]
[1747864881403,0.98009355,674.93,674.07,0.29670508]
[1747864884403,0.98009355,674.95,674.07,0.29670508]
[1747864886107,1.11215982,674.91,674.07,0.29670508]
[1747864887306,0.98009355,674.9,674.07,0.29670508]
[1747864888709,1.11215982,674.91,674.07,0.29670508]
[1747864889610,0.98009355,674.9,674.07,0.29670508]
[1747864892409,0.98009355,674.99,674.07,0.29670508]
[1747864893915,0.98009355,674.98,674.07,0.29670508]
[1747864895614,0.98009355,674.97,674.07,0.29670508]
[1747864897014,0.98009355,674.96,674.07,0.29670508]
[1747864898611,0.98009355,674.95,674.07,0.29670508]
[1747864900417,1.11215982,674.98,674.07,0.29670508]
[1747864902118,0.98009355,674.97,674.07,0.29670508]
[1747864903816,0.98009355,674.96,674.07,0.29670508]
[1747864905423,1.11215982,674.97,674.07,0.29670508]
[1747864907024,0.98009355,674.96,674.07,0.29670508]
[1747864907924,0.98009355,675.22,674.07,0.29670508]
[1747864911225,0.98009355,675.31,674.07,0.29670508]
[1747864914821,0.98009355,675.37,674.07,0.29670508]
[1747864916727,0.98009355,675.39,674.15,0.62566993]
[1747864916922,0.98009355,675.39,674.17,0.29666107]
[1747864917830,0.98009355,675.43,674.17,0.29666107]
[1747864919329,1.11215982,675.37,674.2,0.62566993]
[1747864919525,1.11215982,675.37,674.22,0.29663907]
[1747864920429,0.98009355,675.36,674.22,0.29663907]
[1747864923431,0.98009355,675.37,674.22,0.29663907]
[1747864930135,0.98009355,675.41,674.22,0.29663907]
[1747864932737,0.98009355,675.42,674.22,0.29663907]
[1747864935639,0.98009355,675.44,674.22,0.29663907]
[1747864937940,2.09225337,675.44,674.22,0.29663907]
[1747864939640,0.98009355,675.43,674.22,0.29663907]
[1747864942041,0.98009355,675.55,674.22,0.29663907]
[1747864943847,2.09225337,675.54,674.22,0.29663907]
[1747864945248,0.98009355,675.53,674.22,0.29663907]
[1747864947046,1.11215982,675.43,674.28,0.62566993]
[1747864947350,1.11215982,675.43,674.3,0.29660388]
[1747864948751,0.98009355,675.42,674.3,0.29660388]
[1747864953258,1.11215982,675.38,674.3,0.29660388]
[1747864954859,0.98009355,675.37,674.3,0.29660388]
[1747864956558,1.11215982,675.38,674.3,0.29660388]
[1747864956559,1.11215982,675.2,674.3,0.29660388]
[1747864957458,0.98009355,675.19,674.3,0.29660388]
[1747864958956,0.98009355,675.18,674.3,0.29660388]
[1747864959160,1.11215982,675.16,674.3,0.29660388]
[1747864960657,0.98009355,675.15,674.3,0.29660388]
[1747864962062,1.11215982,675.12,674.3,0.29660388]
[1747864963654,0.98009355,675.11,674.3,0.29660388]
[1747864965064,1.11215982,675.06,674.3,0.29660388]
[1747864966664,0.98009355,675.05,674.3,0.29660388]
[1747864968269,3.7071994,676.27,674.3,0.29660388]
[1747864968270,1.11215982,675.09,674.3,0.29660388]
[1747864969563,0.98009355,675.08,674.3,0.29660388]
[1747864972370,0.98009355,675.07,674.3,0.29660388]
[1747864974170,0.98009355,675.06,674.3,0.29660388]
[1747864975069,0.98009355,675.05,674.3,0.29660388]
[1747864976672,0.98009355,675.13,674.3,0.29660388]
[1747864977975,0.98009355,675.12,674.3,0.29660388]
[1747864980476,2.09225337,675.13,674.3,0.29660388]
[1747864981774,0.98009355,675.12,674.3,0.29660388]
[1747864983979,1.11215982,674.87,674.3,0.29660388]
[1747864985278,0.98009355,674.86,674.3,0.29660388]
[1747864988077,0.98009355,674.97,674.3,0.29660388]
[1747864989877,0.98009355,675.12,674.3,0.29660388]
[1747864991084,0.98009355,675.24,674.3,0.29660388]
[1747864994087,0.98009355,675.51,674.3,0.29660388]
[1747864995788,1.11215982,675.43,674.3,0.29660388]
[1747864997290,0.98009355,675.42,674.3,0.29660388]
[1747864998293,0.98009355,675.41,674.3,0.29660388]
[1747864999395,0.98009355,675.42,674.3,0.29660388]
[1747865000698,1.11215982,675.4,674.3,0.29660388]
[1747865002198,0.98009355,675.39,674.3,0.29660388]
[1747865003700,1.11215982,675.36,674.3,0.29660388]
[1747865004601,0.98009355,675.35,674.3,0.29660388]
[1747865008544,0.98009355,675.36,674.3,0.29660388]
[1747865009638,0.98009355,675.42,674.3,0.29660388]
[1747865012741,0.98009355,675.44,674.3,0.29660388]
[1747865015438,0.98009355,675.45,674.3,0.29660388]
[1747865018149,0.98009355,675.53,674.3,0.29660388]
[1747865021749,0.98009355,675.58,674.3,0.29660388]
[1747865023458,0.98009355,675.57,674.3,0.29660388]
[1747865024547,0.98009355,675.62,674.3,0.29660388]
[1747865026345,0.98009355,675.61,674.3,0.29660388]
[1747865027442,0.98009355,675.63,674.3,0.29660388]
[1747865029923,0.98009355,675.64,674.3,0.29660388]
[1747865035430,1.11215982,675.56,674.3,0.29660388]
[1747865037033,0.98009355,675.55,674.3,0.29660388]
[1747865039340,0.98009355,675.58,674.3,0.29660388]
[1747865041236,2.09225337,675.57,674.3,0.29660388]
[1747865042036,0.98009355,675.56,674.3,0.29660388]
[1747865043332,1.11215982,675.45,674.3,0.29660388]
[1747865044738,0.98009355,675.44,674.3,0.29660388]
[1747865046343,0.98009355,675.43,674.3,0.29660388]
[1747865046542,2.09225337,675.43,674.3,0.29660388]
[1747865048243,0.98009355,675.42,674.3,0.29660388]
[1747865049744,1.11215982,675.38,674.3,0.29660388]
[1747865050943,0.98009355,675.37,674.3,0.29660388]
[1747865052246,1.11215982,675.38,674.3,0.29660388]
[1747865052247,1.11215982,675.35,674.3,0.29660388]
[1747865053548,0.98009355,675.34,674.3,0.29660388]
[1747865055248,0.98009355,675.33,674.3,0.29660388]
[1747865056647,0.98009355,675.32,674.3,0.29660388]
[1747865058255,0.98009355,675.31,674.3,0.29660388]
[1747865059454,0.98009355,675.41,674.3,0.29660388]
[1747865060654,1.11215982,675.42,674.3,0.29660388]
[1747865060655,0.98009355,675.4,674.32,0.62566993]
[1747865060850,0.98009355,675.4,674.34,0.29658629]
[1747865061657,0.98009355,675.39,674.34,0.29658629]
[1747865063055,0.98009355,675.38,674.34,0.29658629]
[1747865064655,0.98009355,675.37,674.34,0.29658629]
[1747865066056,0.98009355,675.36,674.38,0.62566993]
[1747865066256,0.98009355,675.36,674.4,0.2965599]
[1747865067458,0.98009355,675.44,674.4,0.2965599]
[1747865069361,1.11215982,675.42,674.49,0.62566993]
[1747865069564,1.11215982,675.42,674.51,0.29651154]
[1747865070662,0.98009355,675.41,674.51,0.29651154]
[1747865071858,0.98009355,675.4,674.51,0.29651154]
[1747865073363,0.98009355,675.39,674.51,0.29651154]
[1747865074863,0.98009355,675.38,674.51,0.29651154]
[1747865080566,0.98009355,675.37,674.51,0.29651154]
[1747865082168,3.7071994,676.58,674.51,0.29651154]
[1747865082169,0.98009355,675.36,674.51,0.29651154]
[1747865083764,0.98009355,675.35,674.51,0.29651154]
[1747865085566,0.98009355,675.34,674.51,0.29651154]
[1747865086968,0.98009355,675.33,674.51,0.29651154]
[1747865088567,0.98009355,675.32,674.51,0.29651154]
[1747865089672,0.98009355,675.31,674.51,0.29651154]
[1747865091367,0.98009355,675.3,674.51,0.29651154]
[1747865092971,0.98009355,675.29,674.51,0.29651154]
[1747865094473,1.11215982,675.21,674.51,0.29651154]
[1747865095875,0.98009355,675.2,674.51,0.29651154]
[1747865097477,1.11215982,675.08,674.51,0.29651154]
[1747865098778,0.98009355,675.07,674.51,0.29651154]
[1747865100378,0.98009355,675.06,674.51,0.29651154]
[1747865101276,0.98009355,675.05,674.51,0.29651154]
[1747865103482,0.98009355,675.04,674.51,0.29651154]
[1747865104986,0.98009355,675.03,674.51,0.29651154]
[1747865106687,0.98009355,675.02,674.51,0.29651154]
[1747865107788,0.98009355,675.01,674.51,0.29651154]
[1747865109491,0.98009355,675.0,674.51,0.29651154]
[1747865110786,0.98009355,674.99,674.51,0.29651154]
[1747865112493,0.98009355,674.98,674.51,0.29651154]
[1747865114194,0.98009355,674.97,674.51,0.29651154]
[1747865115796,0.98009355,674.96,674.51,0.29651154]
[1747865116896,0.98009355,674.95,674.51,0.29651154]
[1747865118700,2.09225337,674.94,674.51,0.29651154]
[1747865119896,0.98009355,674.93,674.51,0.29651154]
[1747865121402,0.98009355,674.92,674.51,0.29651154]
[1747865122404,0.98009355,674.91,674.51,0.29651154]
[1747865124305,0.98009355,674.9,674.51,0.29651154]
[1747865125205,0.98009355,674.89,674.51,0.29651154]
[1747865126407,1.11215982,675.15,674.51,0.29651154]
[1747865127508,0.96639949,675.14,674.51,0.29651154]
[1747865129611,0.96639949,675.13,674.51,0.29651154]
[1747865130910,0.96639949,675.39,674.51,0.29651154]
[1747865132514,1.11215982,675.34,674.51,0.29651154]
[1747865133210,0.96639949,675.33,674.51,0.29651154]
[1747865134414,1.11215982,675.21,674.51,0.29651154]
[1747865135716,0.96639949,675.2,674.51,0.29651154]
[1747865137114,1.11215982,675.19,674.51,0.29651154]
[1747865139418,1.11215982,675.36,674.51,0.29651154]
[1747865140419,1.48287976,675.55,674.51,0.29651154]
[1747865140817,2.22431964,675.74,674.51,0.29651154]
[1747865143523,1.10450949,675.34,674.51,0.29651154]
[1747865146322,1.10450949,675.33,674.51,0.29651154]
[1747865148635,1.10450949,675.45,674.51,0.29651154]
[1747865151735,1.10450949,675.47,674.51,0.29651154]
[1747865154834,1.10450949,675.52,674.51,0.29651154]
[1747865157942,0.25774818,676.79,674.51,0.29651154]
[1747865157943,1.10450949,675.57,674.51,0.29651154]
[1747865161238,1.10450949,675.54,674.51,0.29651154]
[1747865165451,1.10450949,675.55,674.51,0.29651154]
[1747865168549,1.10450949,675.49,674.51,0.29651154]
[1747865170951,2.22431964,675.81,674.51,0.29651154]
[1747865170952,1.10450949,675.56,674.51,0.29651154]
[1747865176260,1.10450949,675.59,674.51,0.29651154]
[1747865178857,1.10450949,675.56,674.51,0.29651154]
[1747865181261,1.10450949,675.55,674.51,0.29651154]
[1747865184264,1.10450949,675.5,674.51,0.66220753]
[1747865187383,1.10450949,675.57,674.51,0.29651154]
[1747865190979,1.10450949,675.54,674.51,0.29651154]
[1747865193786,1.10450949,675.51,674.51,0.29651154]
[1747865196569,3.7071994,676.4,674.58,0.36569599]
[1747865196570,1.10450949,675.46,674.58,0.36569599]
[1747865196774,1.10450949,675.46,674.6,0.29647198]
[1747865199776,1.10450949,675.45,674.6,0.29647198]
[1747865205179,3.7071994,676.51,674.6,0.29647198]
[1747865205180,1.10450949,675.47,674.6,0.29647198]
[1747865207378,1.10450949,675.6,674.64,0.36569599]
[1747865207578,1.10450949,675.6,674.66,0.29644561]
[1747865212488,1.10450949,675.59,674.66,0.29644561]
[1747865214688,1.10450949,675.67,674.66,0.29644561]
[1747865222390,1.10450949,675.65,674.66,0.29644561]
[1747865225886,1.10450949,675.64,674.66,0.29644561]
[1747865227990,1.10450949,675.63,674.66,0.29644561]
[1747865229993,1.10450949,675.64,674.66,0.29644561]
[1747865232393,1.10450949,675.62,674.66,0.29644561]
[1747865235097,1.10450949,675.63,674.66,0.29644561]
[1747865237895,1.10450949,675.62,674.66,0.29644561]
[1747865242898,1.10450949,675.6,674.66,0.29644561]
[1747865245802,1.10450949,675.57,674.66,0.29644561]
[1747865246806,0.96950434,675.56,674.66,0.29644561]
[1747865248005,2.07401383,675.55,674.66,0.29644561]
[1747865249407,0.96950434,675.54,674.66,0.29644561]
[1747865251011,1.10450949,675.5,674.66,0.29644561]
[1747865252013,0.96950434,675.49,674.66,0.29644561]
[1747865253308,2.07401383,675.48,674.66,0.29644561]
[1747865254514,0.96950434,675.47,674.66,0.29644561]
[1747865256214,1.10450949,675.46,674.66,0.29644561]
[1747865256412,2.07401383,675.46,674.66,0.29644561]
[1747865257515,0.96950434,675.45,674.66,0.29644561]
[1747865258516,0.96950434,675.44,674.66,0.29644561]
[1747865259416,0.96950434,675.43,674.66,0.29644561]
[1747865260417,0.96950434,675.42,674.66,0.29644561]
[1747865261318,0.96950434,675.41,674.66,0.29644561]
[1747865262921,0.96950434,675.4,674.66,0.29644561]
[1747865264415,0.96950434,675.39,674.66,0.29644561]
[1747865266420,0.96950434,675.38,674.66,0.29644561]
[1747865267622,0.96950434,675.37,674.66,0.29644561]
[1747865269319,0.96950434,675.36,674.66,0.29644561]
[1747865270528,0.96950434,675.35,674.66,0.29644561]
[1747865271628,0.96950434,675.34,674.66,0.29644561]
[1747865273331,0.96950434,675.33,674.66,0.29644561]
[1747865274233,0.96950434,675.32,674.66,0.29644561]
[1747865275231,0.96950434,675.31,674.66,0.29644561]
[1747865276324,0.96950434,675.3,674.66,0.29644561]
[1747865277333,0.96950434,675.29,674.66,0.29644561]
[1747865279332,0.96950434,675.28,674.66,0.29644561]
[1747865280432,0.96950434,675.58,674.66,0.29644561]
[1747865282336,2.07401383,675.57,674.66,0.29644561]
[1747865283630,0.96950434,675.56,674.66,0.29644561]
[1747865285236,1.10450949,675.46,674.66,0.29644561]
[1747865286837,0.96950434,675.45,674.66,0.29644561]
[1747865288438,2.07401383,675.44,674.66,0.29644561]
[1747865290239,0.96950434,675.43,674.66,0.29644561]
[1747865291335,0.96950434,675.42,674.66,0.29644561]
[1747865292742,0.96950434,675.41,674.66,0.29644561]
[1747865294542,2.07401383,675.4,674.66,0.29644561]
[1747865295745,0.96950434,675.39,674.66,0.29644561]
[1747865297640,0.96950434,675.38,674.66,0.29644561]
[1747865298442,0.96950434,675.37,674.66,0.29644561]
[1747865301344,0.96950434,675.36,674.66,0.29644561]
[1747865302654,0.96950434,675.35,674.66,0.29644561]
[1747865304152,0.96950434,675.43,674.66,0.29644561]
[1747865305556,0.96950434,675.42,674.66,0.29644561]
[1747865306952,0.96950434,675.41,674.66,0.29644561]
[1747865308161,0.96950434,675.4,674.66,0.29644561]
[1747865309755,0.96950434,675.39,674.66,0.29644561]
[1747865311061,0.96950434,675.38,674.66,0.29644561]
[1747865312964,0.96950434,675.37,674.66,0.29644561]
[1747865314367,0.96950434,675.36,674.66,0.29644561]
[1747865316369,0.96950434,675.35,674.66,0.29644561]
[1747865316871,0.96950434,675.34,674.66,0.29644561]
[1747865318469,0.96950434,675.33,674.66,0.29644561]
[1747865319773,0.96950434,675.32,674.66,0.29644561]
[1747865321774,0.96950434,675.31,674.66,0.29644561]
[1747865323077,0.96950434,675.3,674.66,0.29644561]
[1747865339182,0.96950434,675.29,674.66,0.29644561]
[1747865340686,0.96950434,675.28,674.66,0.29644561]
[1747865342690,0.96950434,675.27,674.66,0.29644561]
[1747865343790,0.96950434,675.26,674.66,0.29644561]